Cogmind - Beta 11.1 @@@ ROGUE MODE // 2022.09.20 @ 08:48:12 Player: deadnoob Result: Destroyed by RU-N14 with RU-N14's Throwing Claymores Performance ------------- Evolutions (1) 500 Regions Visited (5) 1000 Robots Destroyed (61) 305 Value Destroyed (1324) 1324 Prototype IDs (3) 60 Alien Tech Used (0) 0 Bonus (-4) -4 TOTAL SCORE: 3185 Bonus ------- Follower Combat Kills 74 Friendly Fire -78 Cogmind --------- Core Integrity 0/400 Matter 110/300 Energy 100/100 System Corruption 6% Temperature Cool (0) Movement Treading (320) Ox2 Location -7/Zion Parts ------- > --- POWER (1) -------- (None) > --- PROPULSION (3) --- Medium Treads > --- UTILITY (3) ------ Huge Storage Unit > --- WEAPON (2) ------- Improved Assault Rifle > --- INVENTORY (25) --- Deuterium Engine Light Treads Improved Treads Improved Treads Improved Treads Medium Battery (150) Kinecellerator Decoy Drone Bay (16/16) Improved EM Shotgun Improved EM Shotgun Improved EM Shotgun Field Laser Beamcaster Heavy Assault Rifle Heavy Assault Rifle Heavy Assault Rifle Rocket Launcher Rocket Launcher CR-A16's Pointy Stick Peak State ------------ > --- POWER ------------ Deuterium Engine > --- PROPULSION ------- Improved Treads Armored Treads Medium Treads > --- UTILITY ---------- Huge Storage Unit Light Armor Plating Long-range Tractor Beam > --- WEAPON ----------- Improved Assault Rifle Improved Assault Rifle > --- INVENTORY -------- Deuterium Engine Light Treads Improved Treads Improved Treads Improved Treads Medium Battery Kinecellerator Propulsion Shielding Decoy Drone Bay Improved EM Shotgun Improved EM Shotgun Improved EM Shotgun Field Laser Beamcaster Heavy Assault Rifle Heavy Assault Rifle Heavy Assault Rifle Improved Assault Rifle Improved Assault Rifle Rocket Launcher Rocket Launcher CR-A16's Pointy Stick [Rating: 29] Favorites ----------- Power Deuterium Engine Engine Deuterium Engine Power Core Light Nuclear Core Propulsion Improved Treads Treads Improved Treads Leg Aluminum Leg Utility Huge Storage Unit Device Long-range Tractor Beam Storage Huge Storage Unit Processor Targeting Computer Protection Propulsion Shielding Weapon Improved EM Shotgun Energy Gun Improved EM Shotgun Ballistic Gun Improved Assault Rifle Launcher Rocket Launcher Piercing Weapon CR-A16's Pointy Stick Build | -11 -10 -10 -9 -9 -7 ------- Run | Scr Mat Min Mat Min Zio Slots Evolved 2 | . . . 2 . . Power . | . . . . . . Propulsion 1 | . . . 1 . . Utility 1 | . . . 1 . . Weapon . | . . . . . . Parts Attached 66 | . 5 10 23 3 25 Power 6 | . . 3 3 . . Engine 4 | . . 2 2 . . Core 2 | . . 1 1 . . Reactor . | . . . . . . Propulsion 13 | . . 1 7 1 4 Treads 11 | . . . 6 1 4 Leg 2 | . . 1 1 . . Wheel . | . . . . . . Hover . | . . . . . . Flight . | . . . . . . Utility 19 | . 3 5 5 1 5 Device 6 | . 2 3 . . 1 Storage 4 | . 1 1 2 . . Processor 1 | . . 1 . . . Hackware . | . . . . . . Protection 8 | . . . 3 1 4 Artifact . | . . . . . . Weapon 28 | . 2 1 8 1 16 Energy Gun 4 | . 1 1 2 . . Energy Cannon . | . . . . . . Ballistic Gun 17 | . 1 . 6 . 10 Ballistic Cannon . | . . . . . . Launcher 6 | . . . . 1 5 Special Weapon . | . . . . . . Impact Weapon . | . . . . . . Slashing Weapon . | . . . . . . Piercing Weapon 1 | . . . . . 1 Special Melee Weapon . | . . . . . . Unidentified Prototypes 2 | . . 1 1 . . Parts Lost 12 | . . . . . 12 Power 1 | . . . . . 1 Propulsion 3 | . . . . . 3 Utility 6 | . . . . . 6 Weapon 2 | . . . . . 2 Highest Loss Streak 7 | . . . . . 7 To Critical Strikes . | . . . . . . Average Slot Usage (%) 99 | . 97 99 100 99 99 Engine 10 | . 14 14 7 11 11 Treads 27 | . . . 30 33 32 Leg 4 | . 28 28 2 . . Device 3 | . 11 9 . . 3 Storage 11 | . 14 14 11 11 11 Protection 16 | . . . 19 21 18 Energy Gun 8 | . 14 14 9 15 6 Ballistic Gun 9 | . 14 14 12 . 7 Launcher 3 | . . . . 6 5 Piercing Weapon 1 | . . . . . 2 Naked Turns . | . . . . . . Heaviest Build 105 | 11 19 21 103 104 105 Greatest Support 71 | 20 20 20 69 63 71 Greatest Overweight (x) 1 | . . 1 1 1 1 Average Overweight (x) . | . . . . 1 1 Largest Inventory Capacity 25 | . 10 10 25 25 25 Average Capacity 22 | . 9 9 23 25 25 Most Carried 25 | . 10 10 25 25 25 Average Carried 21 | . 8 9 22 24 23 Final Capacity 25 | 8 10 10 25 25 25 Final Carried 25 | 6 10 10 25 25 20 Class Distribution -------------------- 98% | Mutant Dominant Class ---------------- Mutant | -10/Materials Mutant | -10/Mines Mutant | -9/Materials Mutant | -9/Mines Mutant | -7/Zion Resources | -11 -10 -10 -9 -9 -7 ----------- Run | Scr Mat Min Mat Min Zio Matter Collected 1904 | 200 133 117 406 . 1048 Remotely 1003 | . . . . . 1003 Salvage Created 2266 | . 453 164 879 . 770 Parts 150 | . 25 8 59 . 58 Haulers Intercepted 3 | . 1 . 2 . . Recyclers Shooed 5 | . 2 1 2 . . Parts Field Recycled . | . . . . . . Retrieved Matter . | . . . . . . Parts Self-Destructed 8 | . . . . . 8 Prevented . | . . . . . . Kills | -11 -10 -10 -9 -9 -7 ------- Run | Scr Mat Min Mat Min Zio Combat Hostiles Destroyed 29 | . 5 2 17 . 5 Guns 28 | . 5 2 17 . 4 AOE 1 | . . . . . 1 Classes Destroyed 11 | . 5 . 3 . 3 Worker 2 | . 1 . 1 . . Builder 1 | . . . 1 . . Hauler 3 | . 1 . 2 . . Recycler 4 | . 2 1 1 . . Watcher 1 | . 1 . . . . Swarmer 7 | . . . 7 . . Grunt 11 | . 5 2 4 . . Sentry 6 | . . . 6 . . Zionite 33 | . . . . . 33 Surgeon 1 | . . . . . 1 Thug 1 | . . . . . 1 Mutant 4 | . . . . . 4 Best Kill Streak 13 | . 4 2 5 . 13 Combat Bots Only 5 | . 3 1 5 . 1 Max Kills in Single Turn 2 | . 1 1 2 . 2 Gunslinging . | . . . . . . Exploded 1 | . . . . . 1 Melee . | . . . . . . Uniques/NPCs Destroyed . | . . . . . . Combat | -11 -10 -10 -9 -9 -7 -------- Run | Scr Mat Min Mat Min Zio Damage Taken 2855 | . 149 76 420 . 2210 Core 448 | . 40 . . . 408 Absorbed by Shields . | . . . . . . Redirected to Shielding 67 | . . . 21 . 46 Core Remaining (%) 92 | 100 . 84 . . . Volleys Fired 213 | . 30 7 39 . 137 Largest 2 | . 2 2 2 . 2 Hottest 90 | . 85 85 90 . 66 Shots Fired 381 | . 58 14 78 . 231 Gun 348 | . 58 14 78 . 198 Cannon . | . . . . . . Launcher 33 | . . . . . 33 Special . | . . . . . . Kinetic 306 | . 29 7 72 . 198 Thermal 36 | . 29 7 . . . Explosive 33 | . . . . . 33 Electromagnetic 6 | . . . 6 . . Robot Hit Streak 38 | . 11 4 32 . 38 Robot Miss Streak 4 | . 3 4 2 . 4 Penetration Max . | . . . . . . Secondary Targets 10 | . . . 5 . 5 Max Gunslinging Chain 1 | . . . 1 . 1 Shots Hit Robots 242 | . 37 6 61 . 138 Core Hits 115 | . 13 4 35 . 63 Critical Kills 1 | . 1 . . . . Critical Parts Destroyed . | . . . . . . Critical Strikes 2 | . 1 1 . . . Burn 1 | . . 1 . . . Destroy 1 | . 1 . . . . Melee Attacks 170 | . . . . . 170 Impact . | . . . . . . Slashing . | . . . . . . Piercing 170 | . . . . . 170 Sneak Attacks 1 | . . . . . 1 Combat Hostiles . | . . . . . . Follow-up Attacks . | . . . . . . Damage Inflicted 4813 | . 490 107 1008 . 3208 Guns 3521 | . 490 96 962 . 1973 Cannons . | . . . . . . Explosions 1171 | . . . . . 1171 Melee 64 | . . . . . 64 Ramming 57 | . . 11 46 . . Kinetic 3053 | . 213 14 853 . 1973 Thermal 359 | . 277 82 . . . Explosive 1171 | . . . . . 1171 Electromagnetic 109 | . . . 109 . . Impact . | . . . . . . Slashing . | . . . . . . Piercing 64 | . . . . . 64 Highest Corruption 6 | . . . . . 6 Average Corruption 2 | . . . . . 2 Corruption Purged . | . . . . . . Corruption Blocked . | . . . . . . Effects 16 | . . . . . 16 Message Errors 10 | . . . . . 10 Matter Fused 3 | . . . . . 3 Energy Discharges 1 | . . . . . 1 Data Loss (minor) 1 | . . . . . 1 Weapon Failures 1 | . . . . . 1 Overload Shots . | . . . . . . Overflow Damage 37 | . . . . . 37 Projectiles . | . . . . . . Explosions 37 | . . . . . 37 Melee . | . . . . . . Knockbacks 2 | . . . 2 . . Impact 2 | . . . 2 . . Kinetic . | . . . . . . Secondary . | . . . . . . Self-Inflicted Damage . | . . . . . . Shots . | . . . . . . Rammed 7 | . . . 7 . . Targets Rammed 10 | . 1 2 7 . . Kicked 3 | . 1 2 . . . Crushed . | . . . . . . Highest Temperature 75 | . 36 12 75 . 39 Average Temperature 17 | . 16 6 19 . 18 Received Heat Transfer 471 | . 84 42 153 . 192 Siege Activations . | . . . . . . Robots Corrupted . | . . . . . . Combat Hostiles . | . . . . . . Parts Fried . | . . . . . . Impact Corruptions . | . . . . . . Robots Melted . | . . . . . . Combat Hostiles . | . . . . . . Parts Melted 3 | . . . . . 3 Heat Transferred 903 | . 644 259 . . . Parts Sabotaged . | . . . . . . Parts Stolen . | . . . . . . Parts Stripped . | . . . . . . Power Chain Reactions . | . . . . . . Missiles Intercepted . | . . . . . . Alert | -11 -10 -10 -9 -9 -7 ------- Run | Scr Mat Min Mat Min Zio Peak Influence 242 | . 144 125 242 17 . Initial 40 | . . 40 . 17 . Average 91 | . 72 79 118 17 . Maximum Alert Level 1 | . . . 1 . . Low Security (%) 97 | . 100 100 94 100 . Level 1 2 | . . . 5 . . Level 2 . | . . . . . . Level 3 . | . . . . . . Level 4 . | . . . . . . Level 5 . | . . . . . . High Security . | . . . . . . Max Security . | . . . . . . Squads Dispatched 2 | . 2 . . . . Investigation 1 | . 1 . . . . Extermination . | . . . . . . Reinforcement 1 | . 1 . . . . Assault . | . . . . . . Garrison . | . . . . . . Intercept . | . . . . . . Searches Triggered . | . . . . . . Construction Impeded . | . . . . . . Haulers Reinforced . | . . . . . . Active Scanning Responses . | . . . . . . Cargo Convoy Interrupts . | . . . . . . Stealth | -11 -10 -10 -9 -9 -7 --------- Run | Scr Mat Min Mat Min Zio Distress Signals 1 | . 1 . . . . Communications Jammed . | . . . . . . Distress Signals . | . . . . . . Times Spotted 97 | . 11 3 25 . 58 Peak Tracking Total 6 | . 4 2 6 . 6 Tactical Retreats 28 | . . 1 3 . 24 Traps | -11 -10 -10 -9 -9 -7 ------- Run | Scr Mat Min Mat Min Zio Traps Triggered 1 | . . . . 1 . Indirectly . | . . . . . . Trap Hack Attempts . | . . . . . . Triggered . | . . . . . . Disarmed . | . . . . . . Reprogrammed . | . . . . . . Reused . | . . . . . . Traps Extracted . | . . . . . . Installed . | . . . . . . Triggered . | . . . . . . Machines | -11 -10 -10 -9 -9 -7 ---------- Run | Scr Mat Min Mat Min Zio Machines Disabled 4 | . 1 . . . 3 Max in Single Turn 1 | . 1 . . . 1 Machines Sabotaged . | . . . . . . Garrisons Compromised . | . . . . . . Overloaded Fab Kills . | . . . . . . Hacking | -11 -10 -10 -9 -9 -7 --------- Run | Scr Mat Min Mat Min Zio Machines Accessed 16 | . 3 1 10 1 1 Terminals 10 | . 2 . 8 . . Fabricators . | . . . . . . Repair Stations 1 | . . . 1 . . Recycling Units 1 | . 1 . . . . Scanalyzers 1 | . . . 1 . . Garrison Access . | . . . . . . Total Hacks 35 | . 6 1 23 1 4 Successful 20 | . 2 1 12 1 4 Failed 14 | . 4 . 10 . . Catastrophic 2 | . 2 . . . . Database Lockouts 1 | . . . 1 . . Manual 18 | . 4 . 14 . . Terminals 25 | . 5 . 20 . . Fabricators . | . . . . . . Repair Stations 1 | . . . 1 . . Recycling Units 1 | . 1 . . . . Scanalyzers 2 | . . . 2 . . Garrison Access . | . . . . . . Terminal Hacks 15 | . 1 1 8 1 4 Part Schematic 4 | . . . . . 4 Robot Analysis 3 | . 1 . 2 . . Open Door 2 | . . 1 . 1 . Branch Access Points 1 | . . . 1 . . Terminal Index 1 | . . . 1 . . Alert Level 1 | . . . 1 . . Unreport Threat 1 | . . . 1 . . Locate Traps 1 | . . . 1 . . Registered Components 1 | . . . 1 . . Fabricator Hacks . | . . . . . . Repair Station Hacks . | . . . . . . Recycling Unit Hacks . | . . . . . . Scanalyzer 2 | . . . 2 . . Insert Component 1 | . . . 1 . . Analyze 1 | . . . 1 . . Garrison Access Hacks . | . . . . . . Unauthorized Hacks 3 | . 1 . 2 . . Terminals 2 | . . . 2 . . Botnet 2 | . . . 2 . . Fabricators . | . . . . . . Repair Stations . | . . . . . . Recycling Units 1 | . 1 . . . . Tunnel 1 | . 1 . . . . Scanalyzers . | . . . . . . Garrison Access . | . . . . . . Data Cores Recovered . | . . . . . . Used . | . . . . . . Hacking Detections 10 | . 2 . 8 . . Full Trace Events 1 | . . . 1 . . Feedback Events . | . . . . . . Feedback Blocked . | . . . . . . Robot Schematics Acquired . | . . . . . . Robots Built . | . . . . . . Authchips . | . . . . . . Time . | . . . . . . Total Robot Build Rating . | . . . . . . Part Schematics Acquired 5 | . . . 1 . 4 Parts Built . | . . . . . . Authchips . | . . . . . . Time . | . . . . . . Total Part Build Rating . | . . . . . . Parts Repaired . | . . . . . . Time . | . . . . . . Parts Recycled . | . . . . . . Recycled Matter . | . . . . . . Retrieved Matter . | . . . . . . Retrieved Components . | . . . . . . Parts Scanalyzed 1 | . . . 1 . . Part Schematics Acquired 1 | . . . 1 . . Parts Damaged 1 | . . . 1 . . Bothacking | -11 -10 -10 -9 -9 -7 ------------ Run | Scr Mat Min Mat Min Zio Used RIF Installer . | . . . . . . Robots Hacked . | . . . . . . Non-combat . | . . . . . . Combat . | . . . . . . Robot Hacks Applied . | . . . . . . Relay Couplers Released . | . . . . . . Fabnet Peak Effective % . | . . . . . . Robots Rewired . | . . . . . . Allies Hacked . | . . . . . . Hacks Repelled . | . . . . . . Allies | -11 -10 -10 -9 -9 -7 -------- Run | Scr Mat Min Mat Min Zio Total Allies 3 | . . . . 3 . Largest Group 3 | . . . . 3 3 Highest-Rated Group 40 | . . . . 40 40 Highest-Rated Ally 16 | . . . . 16 16 Total Orders . | . . . . . . Ally Attacks 43 | . . . . . 43 Total Damage 439 | . . . . . 439 Kills 5 | . . . . . 5 Allies Corrupted . | . . . . . . Allies Melted . | . . . . . . Intel | -11 -10 -10 -9 -9 -7 ------- Run | Scr Mat Min Mat Min Zio Robot Analysis Total 3 | . 1 . 2 . . Derelict Logs Recovered 2 | . . 1 . . 1 Drone Launches . | . . . . . . Drone Recoveries . | . . . . . . Exploration | -11 -10 -10 -9 -9 -7 ------------- Run | Scr Mat Min Mat Min Zio Turns Passed 7407 | . 523 566 1562 331 4425 Spaces Moved 2780 | 1 322 406 591 135 1325 Core . | . . . . . . Treads 1979 | . . . 519 135 1325 Legs 801 | 1 322 406 72 . . Wheels . | . . . . . . Hover . | . . . . . . Flight . | . . . . . . Fastest Speed 120 | 120 120 120 120 240 240 Average Speed 206 | 120 120 120 226 240 240 Slowest Speed 243 | 120 120 190 240 240 243 Overloaded Moves . | . . . . . . Propulsion Burnouts . | . . . . . . Robots Hopped . | . . . . . . Cave-ins Triggered . | . . . . . . Exploration Rate (%) 51 | 2 47 92 58 31 81 Regions Visited 5 Branch Regions 3 Pre-discovered Areas 5 | . 1 . . . 4 Known Exits Taken 1 | . . . 1 . . Unknown Exits Taken 4 | 1 1 1 . 1 . Scrap Searched 3 | . . 2 . . 1 Spaces Dug 1 | . . . . . 1 Terrain Destroyed 53 | . . . . . 53 Melee 1 | . . . . . 1 Projectile . | . . . . . . AOE 52 | . . . . . 52 Terrain Rammed . | . . . . . . Walls Destroyed . | . . . . . . Machines Disabled . | . . . . . . Actions | -11 -10 -10 -9 -9 -7 --------- Run | Scr Mat Min Mat Min Zio Total 3734 | . 405 475 731 142 1981 Wait 391 | . 25 25 21 1 319 Move 2775 | . 321 405 590 134 1325 Hop . | . . . . . . Pick Up 58 | . 12 11 30 2 3 Fast Attach 10 | . 2 4 2 2 . Attach 14 | . . 3 3 . 8 Detach 2 | . . 1 1 . . Swap 42 | . 3 3 18 1 17 Drop 49 | . 11 14 20 2 2 Fire 213 | . 30 7 39 . 137 Melee 170 | . . . . . 170 Ram . | . . . . . . Kick 3 | . 1 2 . . . Crush 7 | . . . 7 . . Escape Stasis . | . . . . . . Rewire . | . . . . . . Trap . | . . . . . . Miscellaneous . | . . . . . . Route ------- -11/Scrapyard -10/Materials (discovered 2 exits: *Mat / *Min) -10/Mines (discovered 2 exits: *Mat x2) -9/Materials (discovered 3 exits: [*Mat x2] / *Min) -9/Mines -7/Zion (discovered 1 exit: [*Pro]) History --------- Turn | Location | Event 1 | -11/Scrapyard | Discovered new exit (range 0) 1 | -11/Scrapyard | Entered Materials 122 | -10/Materials | Discovered new exit (range 12) 308 | -10/Materials | Build established: Mutant 323 | -10/Materials | Discovered new exit (range 6) 524 | -10/Materials | Entered Mines 682 | -10/Mines | Discovered new exit (range 8) 758 | -10/Mines | Learned Materials stockpile data 788 | -10/Mines | Found the Drone Emporium 798 | -10/Mines | Found Prototype Device 815 | -10/Mines | Identified Decoy Drone Bay 934 | -10/Mines | Joined a pair of Derelicts in attacking an 0b10 outpost 1053 | -10/Mines | Discovered new exit (range 13) 1090 | -10/Mines | Entered Materials 1090 | -9/Materials | Evolved 2 slots: Propulsion x1, Utility x1 1539 | -9/Materials | Identified exit to Mines 1650 | -9/Materials | Discovered new exit (range 7) 2034 | -9/Materials | Discovered new exit (range 10) 2070 | -9/Materials | Central database locked down 2652 | -9/Materials | Entered Mines 2668 | -9/Mines | Met a Derelict who couldn't figure out how to use a Trap Extractor 2802 | -9/Mines | A weapon hastily lodged in a ceiling crevice suddenly fell to the ground 2863 | -9/Mines | A Derelict revealed a hidden shortcut to a safe place 2953 | -9/Mines | Assisted by bots powering up and referring to "LRC-V3" 2983 | -9/Mines | Entered Zion 2983 | -7/Zion | Accompanied by 3 allies 3322 | -7/Zion | Discovered new exit (range 15) 3720 | -7/Zion | Received a hallucinogenic algorithm 3939 | -7/Zion | Learned location of Quarantine (-3) 4102 | -7/Zion | Learned Factory emergency access door positions 4198 | -7/Zion | Learned location of Warlord (-5) 4277 | -7/Zion | Learned location of Data Miner (-6) 4354 | -7/Zion | Found CR-A16's Pointy Stick 5662 | -7/Zion | Attacked by Zionites 6000 | -7/Zion | Core integrity fell below 50% 7403 | -7/Zion | Core integrity fell below 20% 7408 | -7/Zion | Destroyed by RU-N14 with RU-N14's Throwing Claymores Last Messages --------------- 06966_ 57-8TM(z) destroyed. 06970_ System corrupted: Matter fused (-6). B5-MTP(z) bursts out of the Twisted Machinery. 07023_ B5-MTP(z) destroyed. 07028_ Acquired 19 matter. 07071_ System corrupted: Component data lost. 07173_ KTG#WM>LKYNOU0 07394_ KX3:,SD|/RG%RFU70AHBHIBZPX:A%9K|R 07398_ Propulsion Shielding destroyed. 07400_ Lgt. Armor Plating destroyed. 07402_ Imp. Assault Rifle destroyed. 07406_ Deuterium Engine destroyed. 07406_ Arm. Treads destroyed. 07406_ Imp. Treads destroyed. 07408_ Imp. Assault Rifle severed. Map ----- +----------------------------------------------------+ | ???????????????????????????????###"""## #?#"### | | ???????????????????????######??#""""""" #####""" | | ??????????#######??????# ###""" # """""" | | ??????????# /!//#?????## # # #"" "" | | ??????????#][ [#?????# # # / | | ??????????#[ [#??????# ! | | ??????????## ##??????# | | ?#######???# #???????# " | | ## ##### ##??????## =[ "" """ " | | " ##?????## * """" ""##" " | | ####### #????## = """""""#"#"" " | | ??????" " ###??# """"""###"" " | | ??????# # # #?## ""########" " | | ?????## ### [ ""#"#""#"" " | | ?????" ### * =* " """""#"" " | | ?????" ### / * ""#"" " | | ###### =### / *![ """"" " | | # # =!##* = / = / = = | | ## # # ## * = !! ! = / | | #?########## ### ! / | | ??????????# ! # * "" """ """" " | | ?????????## # [ = c = " | | ?????????# # # ! """ | | ????????### """"* """" | | ????????# """"" """"""" | | ????????## @ #""#""""##"##"" | | ?????????# """""#"##?###""""" | | ?????????# = = "####?????##"""# | | ?????????## ! ""#""#???????##?? | | ??????????# # * """"#??????????? | | ??????????### """##?????????? | | ????????????### """#?????????? | | ????????????# "##?????????? | | ????????????## # ""#?????????? | | ????????????# "##?????????? | | ???????????## """#??????????? | | ???????????# " * """##??????????? | | ???????????## ""##"#??????????? | | ???????????# | ""#?????????????? | | ???????"#####"! ! # "#?????????????? | | ?""""""""""" # # " #?????????????? | | ?"" """" [ = " * ""#?????????????? | | ?"" """%= """#?????????????? | | ?"" [""" / """#?????????????? | | ?"" """"""" "" #""#?????????????? | | """""""#""" #"##?????????????? | | """#####""" ""###????????????? | | ????""#?##"#"" """"#????????????? | | ???????????#"""" """##????????????? | | ??????????##""" ""#######????????? | +----------------------------------------------------+ Best States ------------- Heat Dissipation 35 Energy Generation 14 Energy Capacity 275 Matter Stores 300 Matter Capacity 300 Sight Range 16 Terrain Scan Density 10 Armor Coverage 225 Propulsion Shielding 33 Evasion (%) 55 Targeting Accuracy 5 Recoil Reduction 3 Item Schematics ----------------- Imp. Assault Rifle | -9/Materials | Scanalyzed Battle Rifle | -7/Zion | Free Enh. Flamer | -7/Zion | Free Ripper | -7/Zion | Free Phasing Sabre | -7/Zion | Free Robot Schematics ------------------ None Fabricated ------------ Nothing Alien Tech Used ----------------- None Achievements -------------- None Challenges ------------ None Game ------ Seed BeamCoolantDiverter Manual? 0 Play Time 00:44:50 Cumulative 88.1 hours Start 2022.09.19 @ 22:06:24 End 2022.09.20 @ 08:48:12 Sessions 2 Manual Loads 0 Difficulty Rogue Special Mode None Game No. 118 Rogue 118 Adventurer 0 Explorer 0 Win Type - Total 1 Types 1/0/0/0/0/0/0/0/0 Lore% 60 Gallery% 62 Achievement% 49 Wizard Run 0 Options --------- ASCII 0 Keyboard 0 Movement Numpad Keybinds 0 Fullscreen 2 Font 18/SmallcapsGlow Map View 76x50 Tactical HUD 1 Map Filters NONE Filters NONE Steam 1 RUN: b618256c-ecad-4354-9fcb-cb21e772049d